[Event "FIDE World Rapid Chess Championship 2021"]
[White "Matlakov, Maxim"]
[Black "Rapport, Richard"]
[WhiteFideId "4168003"]
[BlackFideId "738590"]
[WhiteElo "2652"]
[BlackElo "2750"]
[Result "1/2-1/2"]
[Round "06"]
[TimeControl "900+10"]
[Date "2021.12.27"]
[WhiteClock "0:01:06"]
[BlackClock "0:01:05"]

1. d4 {[%clk 0:15:00]}  Nf6 {[%clk 0:15:00]} 2. c4 {[%clk 0:15:18]}  g6 {[%clk 0:15:00]} 3. Nf3 {[%clk 0:15:18]}  Bg7 {[%clk 0:15:00]} 4. g3 {[%clk 0:15:18]}  O-O {[%clk 0:15:00]} 5. Bg2 {[%clk 0:15:18]}  d6 {[%clk 0:15:00]} 6. O-O {[%clk 0:15:18]}  Nc6 {[%clk 0:15:00]} 7. Nc3 {[%clk 0:15:18]}  Rb8 {[%clk 0:15:00]} 8. d5 {[%clk 0:15:37]}  Na5 {[%clk 0:15:38]} 9. b3 {[%clk 0:15:37]}  c5 {[%clk 0:15:38]} 10. dxc6 {[%clk 0:15:37]}  bxc6 {[%clk 0:15:38]} 11. Bg5 {[%clk 0:14:42]}  h6 {[%clk 0:15:23]} 12. Be3 {[%clk 0:14:42]}  Ng4 {[%clk 0:15:23]} 13. Bd2 {[%clk 0:14:42]}  e5 {[%clk 0:14:34]} 14. Rc1 {[%clk 0:13:44]}  f5 {[%clk 0:13:30]} 15. e4 {[%clk 0:13:44]}  f4 {[%clk 0:13:22]} 16. h3 {[%clk 0:11:45]}  Nf6 {[%clk 0:13:22]} 17. gxf4 {[%clk 0:11:45]}  exf4 {[%clk 0:12:17]} 18. e5 {[%clk 0:11:34]}  dxe5 {[%clk 0:11:36]} 19. Nxe5 {[%clk 0:08:36]}  g5 {[%clk 0:11:36]} 20. Na4 {[%clk 0:08:36]}  f3 {[%clk 0:10:12]} 21. Bxf3 {[%clk 0:08:30]}  Bxh3 {[%clk 0:07:33]} 22. Re1 {[%clk 0:05:36]}  Nd7 {[%clk 0:07:04]} 23. Bxa5 {[%clk 0:05:39]}  Nxe5 {[%clk 0:05:13]} 24. Bd5+ {[%clk 0:02:54]}  cxd5 {[%clk 0:05:17]} 25. Bxd8 {[%clk 0:02:54]}  Nf3+ {[%clk 0:05:17]} 26. Kh1 {[%clk 0:02:54]}  Rbxd8 {[%clk 0:05:17]} 27. cxd5 {[%clk 0:02:54]}  Nxe1 {[%clk 0:03:03]} 28. Qxe1 {[%clk 0:03:06]}  Rxd5 {[%clk 0:03:03]} 29. Rc7 {[%clk 0:03:06]}  Bg4 {[%clk 0:03:03]} 30. Nc3 {[%clk 0:03:06]}  Bxc3 {[%clk 0:03:01]} 31. Qxc3 {[%clk 0:02:37]}  Rd1+ {[%clk 0:01:07]} 32. Kg2 {[%clk 0:02:30]}  Bf3+ {[%clk 0:01:07]} 33. Qxf3 {[%clk 0:02:30]}  Rxf3 {[%clk 0:01:07]} 34. Kxf3 {[%clk 0:02:30]}  a5 {[%clk 0:01:07]} 35. Ra7 {[%clk 0:02:30]}  Rd5 {[%clk 0:01:07]} 36. Kg4 {[%clk 0:02:30]}  Kf8 {[%clk 0:01:37]} 37. Kh5 {[%clk 0:01:39]}  Rf5 {[%clk 0:01:37]} 38. Kxh6 {[%clk 0:01:39]}  g4 {[%clk 0:01:37]} 39. a4 {[%clk 0:01:39]}  Rxf2 {[%clk 0:01:32]} 40. Rxa5 {[%clk 0:01:16]}  Rb2 {[%clk 0:01:32]} 41. Rg5 {[%clk 0:01:06]}  Rxb3 {[%clk 0:01:05]} 42. Rxg4 {[%clk 0:01:06]} 1/2-1/2


[Site "http://www.Chess.com"]

[Event "FIDE World Rapid Chess Championship 2021"]
[White "Efimenko, Zahar"]
[Black "Wojtaszek, Radoslaw"]
[WhiteFideId "14107201"]
[BlackFideId "1118358"]
[WhiteElo "2609"]
[BlackElo "2743"]
[Result "1/2-1/2"]
[Round "06"]
[TimeControl "900+10"]
[Date "2021.12.27"]
[WhiteClock "0:01:15"]
[BlackClock "0:01:30"]

1. e4 {[%clk 0:15:05]}  c5 {[%clk 0:15:00]} 2. Nf3 {[%clk 0:15:05]}  d6 {[%clk 0:15:00]} 3. Bb5+ {[%clk 0:15:05]}  Nd7 {[%clk 0:15:00]} 4. Ba4 {[%clk 0:15:05]}  Nf6 {[%clk 0:15:00]} 5. O-O {[%clk 0:15:05]}  e6 {[%clk 0:15:00]} 6. Re1 {[%clk 0:15:20]}  a6 {[%clk 0:15:39]} 7. c3 {[%clk 0:15:20]}  b5 {[%clk 0:15:39]} 8. Bc2 {[%clk 0:15:20]}  c4 {[%clk 0:15:39]} 9. d4 {[%clk 0:14:32]}  cxd3 {[%clk 0:15:41]} 10. Bxd3 {[%clk 0:14:32]}  Bb7 {[%clk 0:15:49]} 11. Nbd2 {[%clk 0:13:26]}  Be7 {[%clk 0:15:49]} 12. Nb3 {[%clk 0:13:26]}  O-O {[%clk 0:15:49]} 13. a4 {[%clk 0:13:26]}  bxa4 {[%clk 0:14:44]} 14. Rxa4 {[%clk 0:13:45]}  a5 {[%clk 0:13:20]} 15. Bc2 {[%clk 0:13:51]}  Bc6 {[%clk 0:13:20]} 16. Ra1 {[%clk 0:13:00]}  Qb6 {[%clk 0:13:20]} 17. Nfd4 {[%clk 0:12:55]}  Bb7 {[%clk 0:12:18]} 18. Nd2 {[%clk 0:11:06]}  Rfc8 {[%clk 0:12:07]} 19. Qe2 {[%clk 0:08:58]}  Ne5 {[%clk 0:11:59]} 20. h3 {[%clk 0:08:16]}  Ned7 {[%clk 0:10:55]} 21. Qe3 {[%clk 0:07:43]}  Bf8 {[%clk 0:08:11]} 22. Qg3 {[%clk 0:07:43]}  Ne5 {[%clk 0:07:05]} 23. N2f3 {[%clk 0:07:43]}  Nxf3+ {[%clk 0:06:53]} 24. Nxf3 {[%clk 0:06:41]}  d5 {[%clk 0:06:02]} 25. exd5 {[%clk 0:06:25]}  Bxd5 {[%clk 0:05:34]} 26. Ne5 {[%clk 0:06:25]}  Qb7 {[%clk 0:05:34]} 27. Ra4 {[%clk 0:06:25]}  Bb3 {[%clk 0:05:09]} 28. Bxb3 {[%clk 0:05:26]}  Qxb3 {[%clk 0:05:09]} 29. Rd4 {[%clk 0:05:26]}  Rd8 {[%clk 0:05:09]} 30. Qd3 {[%clk 0:04:44]}  Rxd4 {[%clk 0:05:22]} 31. Qxd4 {[%clk 0:02:09]}  Qd5 {[%clk 0:04:20]} 32. Qxd5 {[%clk 0:02:04]}  Nxd5 {[%clk 0:02:34]} 33. c4 {[%clk 0:02:04]}  Nb4 {[%clk 0:02:34]} 34. Rd1 {[%clk 0:01:54]}  Rc8 {[%clk 0:02:34]} 35. b3 {[%clk 0:01:54]}  f6 {[%clk 0:02:34]} 36. Nd7 {[%clk 0:01:52]}  Be7 {[%clk 0:01:30]} 37. Be3 {[%clk 0:01:52]}  Kf7 {[%clk 0:01:30]} 38. Nb6 {[%clk 0:01:52]}  Rc7 {[%clk 0:01:30]} 39. Na4 {[%clk 0:01:15]} 1/2-1/2


[Site "http://www.Chess.com"]

[Event "FIDE World Rapid Chess Championship 2021"]
[White "Hovhannisyan, Robert"]
[Black "Mamedyarov, Shakhriyar"]
[WhiteFideId "13302507"]
[BlackFideId "13401319"]
[WhiteElo "2613"]
[BlackElo "2727"]
[Result "1-0"]
[Round "06"]
[TimeControl "900+10"]
[Date "2021.12.27"]
[WhiteClock "0:00:35"]
[BlackClock "0:00:13"]

1. e4 {[%clk 0:15:00]}  e5 {[%clk 0:15:00]} 2. Nf3 {[%clk 0:15:00]}  Nc6 {[%clk 0:15:16]} 3. Nc3 {[%clk 0:15:26]}  Nf6 {[%clk 0:15:16]} 4. d4 {[%clk 0:15:26]}  exd4 {[%clk 0:15:16]} 5. Nxd4 {[%clk 0:15:26]}  Bb4 {[%clk 0:15:16]} 6. Nxc6 {[%clk 0:15:26]}  bxc6 {[%clk 0:15:16]} 7. Bd3 {[%clk 0:15:26]}  d5 {[%clk 0:15:16]} 8. exd5 {[%clk 0:15:26]}  O-O {[%clk 0:15:16]} 9. O-O {[%clk 0:15:26]}  Bg4 {[%clk 0:15:16]} 10. f3 {[%clk 0:15:26]}  Bh5 {[%clk 0:15:16]} 11. Bg5 {[%clk 0:15:26]}  Bxc3 {[%clk 0:15:16]} 12. bxc3 {[%clk 0:15:26]}  cxd5 {[%clk 0:16:16]} 13. Re1 {[%clk 0:16:16]}  c6 {[%clk 0:16:16]} 14. Qd2 {[%clk 0:15:33]}  Bg6 {[%clk 0:15:59]} 15. Bf1 {[%clk 0:15:33]}  Rb8 {[%clk 0:15:40]} 16. Rab1 {[%clk 0:13:27]}  Rxb1 {[%clk 0:15:05]} 17. Rxb1 {[%clk 0:12:40]}  Qa5 {[%clk 0:15:05]} 18. Rb7 {[%clk 0:12:48]}  Qxa2 {[%clk 0:14:19]} 19. Qd4 {[%clk 0:10:06]}  a5 {[%clk 0:13:34]} 20. Qb6 {[%clk 0:09:20]}  h6 {[%clk 0:12:21]} 21. Bxf6 {[%clk 0:07:33]}  gxf6 {[%clk 0:12:21]} 22. Qxc6 {[%clk 0:07:33]}  Qxc2 {[%clk 0:09:26]} 23. Qxf6 {[%clk 0:07:25]}  Qd2 {[%clk 0:08:48]} 24. Qd4 {[%clk 0:06:58]}  Qxd4+ {[%clk 0:07:07]} 25. cxd4 {[%clk 0:06:58]}  Ra8 {[%clk 0:07:07]} 26. Rb3 {[%clk 0:05:42]}  a4 {[%clk 0:07:18]} 27. Ra3 {[%clk 0:05:42]}  Bc2 {[%clk 0:07:18]} 28. Kf2 {[%clk 0:05:42]}  Rb8 {[%clk 0:07:16]} 29. Ke3 {[%clk 0:05:23]}  Rb2 {[%clk 0:06:28]} 30. g4 {[%clk 0:05:15]}  Kf8 {[%clk 0:02:46]} 31. Bd3 {[%clk 0:04:31]}  Rb3 {[%clk 0:01:49]} 32. Rxb3 {[%clk 0:04:04]}  Bxb3 {[%clk 0:01:49]} 33. Kd2 {[%clk 0:04:04]}  a3 {[%clk 0:01:49]} 34. Kc3 {[%clk 0:04:04]}  Bd1 {[%clk 0:01:04]} 35. f4 {[%clk 0:04:10]}  a2 {[%clk 0:01:04]} 36. Kb2 {[%clk 0:03:55]}  Bxg4 {[%clk 0:01:04]} 37. Kxa2 {[%clk 0:03:55]}  Ke7 {[%clk 0:01:04]} 38. Kb3 {[%clk 0:03:55]}  Kd6 {[%clk 0:01:04]} 39. Kb4 {[%clk 0:03:55]}  Bd7 {[%clk 0:01:04]} 40. Ka5 {[%clk 0:03:55]}  Kc7 {[%clk 0:01:04]} 41. Bc2 {[%clk 0:04:15]}  f6 {[%clk 0:00:29]} 42. Bb3 {[%clk 0:04:15]}  Kd6 {[%clk 0:00:29]} 43. Kb6 {[%clk 0:04:15]}  Be6 {[%clk 0:00:29]} 44. Bc2 {[%clk 0:04:15]}  Bd7 {[%clk 0:00:25]} 45. Kb7 {[%clk 0:04:02]}  Be6 {[%clk 0:00:25]} 46. f5 {[%clk 0:04:02]}  Bd7 {[%clk 0:00:25]} 47. Bd3 {[%clk 0:04:02]}  Bc6+ {[%clk 0:00:25]} 48. Kc8 {[%clk 0:03:28]}  Ba4 {[%clk 0:00:54]} 49. Kd8 {[%clk 0:03:28]}  Bd7 {[%clk 0:00:54]} 50. Bc2 {[%clk 0:03:28]}  Bc6 {[%clk 0:00:54]} 51. h4 {[%clk 0:03:00]}  Bd7 {[%clk 0:01:07]} 52. Bd3 {[%clk 0:03:00]}  Ba4 {[%clk 0:01:07]} 53. Be2 {[%clk 0:03:00]}  Bd7 {[%clk 0:00:38]} 54. Bg4 {[%clk 0:01:09]}  Bb5 {[%clk 0:00:38]} 55. Bh5 {[%clk 0:01:09]}  Bd7 {[%clk 0:00:38]} 56. Bg6 {[%clk 0:01:09]}  Ba4 {[%clk 0:00:38]} 57. Be8 {[%clk 0:01:09]}  Bc2 {[%clk 0:00:38]} 58. Bd7 {[%clk 0:01:09]}  Bd1 {[%clk 0:00:38]} 59. Bb5 {[%clk 0:00:49]}  Bh5 {[%clk 0:00:50]} 60. Ba4 {[%clk 0:00:49]}  Bg4 {[%clk 0:00:50]} 61. Bc2 {[%clk 0:00:38]}  Bh5 {[%clk 0:00:12]} 62. Bd3 {[%clk 0:00:38]}  Bf3 {[%clk 0:00:12]} 63. Ke8 {[%clk 0:00:38]}  Be4 {[%clk 0:00:12]} 64. Be2 {[%clk 0:00:38]}  Bxf5 {[%clk 0:00:12]} 65. Kf7 {[%clk 0:00:38]}  Be4 {[%clk 0:00:12]} 66. Kxf6 {[%clk 0:00:38]}  Kc6 {[%clk 0:00:13]} 67. Kg7 {[%clk 0:00:35]}  h5 {[%clk 0:00:13]} 68. Bxh5 {[%clk 0:00:35]}  Kb5 {[%clk 0:00:13]} 69. Kf6 {[%clk 0:00:35]} 1-0


[Site "http://www.Chess.com"]

[Event "FIDE World Rapid Chess Championship 2021"]
[White "Van Foreest, Jorden"]
[Black "Shirov, Alexei"]
[WhiteFideId "1039784"]
[BlackFideId "2209390"]
[WhiteElo "2563"]
[BlackElo "2702"]
[Result "1-0"]
[Round "06"]
[TimeControl "900+10"]
[Date "2021.12.27"]
[WhiteClock "0:05:02"]
[BlackClock "0:00:23"]

1. e4 {[%clk 0:15:00]}  e5 {[%clk 0:15:00]} 2. Nf3 {[%clk 0:15:00]}  Nc6 {[%clk 0:15:00]} 3. Bb5 {[%clk 0:15:22]}  a6 {[%clk 0:15:27]} 4. Ba4 {[%clk 0:15:22]}  Nf6 {[%clk 0:15:27]} 5. O-O {[%clk 0:15:22]}  b5 {[%clk 0:15:27]} 6. Bb3 {[%clk 0:15:22]}  Bc5 {[%clk 0:15:27]} 7. a4 {[%clk 0:15:22]}  Rb8 {[%clk 0:15:27]} 8. c3 {[%clk 0:15:22]}  d6 {[%clk 0:15:27]} 9. d4 {[%clk 0:15:22]}  Bb6 {[%clk 0:15:27]} 10. h3 {[%clk 0:15:27]}  O-O {[%clk 0:15:15]} 11. Na3 {[%clk 0:15:13]}  Bb7 {[%clk 0:11:02]} 12. axb5 {[%clk 0:15:09]}  axb5 {[%clk 0:11:02]} 13. Nxb5 {[%clk 0:14:21]}  exd4 {[%clk 0:11:06]} 14. cxd4 {[%clk 0:13:59]}  Nxe4 {[%clk 0:11:06]} 15. Re1 {[%clk 0:13:59]}  d5 {[%clk 0:11:06]} 16. Nc3 {[%clk 0:13:13]}  Ne7 {[%clk 0:08:26]} 17. Ng5 {[%clk 0:13:14]}  Nxg5 {[%clk 0:04:55]} 18. Bxg5 {[%clk 0:13:14]}  f6 {[%clk 0:04:55]} 19. Bf4 {[%clk 0:13:14]}  Nf5 {[%clk 0:04:58]} 20. Na4 {[%clk 0:09:28]}  Ra8 {[%clk 0:03:53]} 21. Rc1 {[%clk 0:08:23]}  Rf7 {[%clk 0:03:53]} 22. Nxb6 {[%clk 0:07:45]}  cxb6 {[%clk 0:02:29]} 23. Re6 {[%clk 0:07:45]}  Rc8 {[%clk 0:02:29]} 24. Bc2 {[%clk 0:07:11]}  Nh4 {[%clk 0:02:20]} 25. Rd6 {[%clk 0:07:11]}  Rd7 {[%clk 0:02:20]} 26. Re6 {[%clk 0:07:04]}  Ng6 {[%clk 0:01:30]} 27. Bg3 {[%clk 0:07:04]}  Re7 {[%clk 0:01:39]} 28. Bf5 {[%clk 0:05:50]}  Rxc1 {[%clk 0:01:30]} 29. Qxc1 {[%clk 0:05:15]}  Qc8 {[%clk 0:01:30]} 30. Qe3 {[%clk 0:05:02]}  Qe8 {[%clk 0:00:23]} 1-0


[Site "http://www.Chess.com"]

[Event "FIDE World Rapid Chess Championship 2021"]
[White "Najer, Evgeniy"]
[Black "Onyshchuk, Volodymyr"]
[WhiteFideId "4118987"]
[BlackFideId "14114038"]
[WhiteElo "2565"]
[BlackElo "2687"]
[Result "1/2-1/2"]
[Round "06"]
[TimeControl "900+10"]
[Date "2021.12.27"]
[WhiteClock "0:00:24"]
[BlackClock "0:01:12"]

1. e4 {[%clk 0:15:00]}  d6 {[%clk 0:15:00]} 2. d4 {[%clk 0:15:00]}  g6 {[%clk 0:15:00]} 3. Nc3 {[%clk 0:15:31]}  Bg7 {[%clk 0:15:25]} 4. Be3 {[%clk 0:15:31]}  a6 {[%clk 0:15:25]} 5. h4 {[%clk 0:15:31]}  h6 {[%clk 0:15:25]} 6. Qd2 {[%clk 0:15:31]}  b5 {[%clk 0:15:25]} 7. O-O-O {[%clk 0:15:31]}  Bb7 {[%clk 0:15:25]} 8. f3 {[%clk 0:15:31]}  Nd7 {[%clk 0:15:25]} 9. Nh3 {[%clk 0:15:31]}  e6 {[%clk 0:15:51]} 10. g4 {[%clk 0:15:55]}  Ne7 {[%clk 0:15:14]} 11. Kb1 {[%clk 0:15:55]}  d5 {[%clk 0:15:08]} 12. Nf2 {[%clk 0:14:25]}  Nb6 {[%clk 0:13:47]} 13. Nd3 {[%clk 0:14:00]}  Nc4 {[%clk 0:13:37]} 14. Qc1 {[%clk 0:14:00]}  Nxe3 {[%clk 0:13:09]} 15. Qxe3 {[%clk 0:12:27]}  Qd6 {[%clk 0:13:09]} 16. Nc5 {[%clk 0:12:27]}  O-O-O {[%clk 0:12:36]} 17. e5 {[%clk 0:12:26]}  Qb6 {[%clk 0:12:13]} 18. Ne2 {[%clk 0:12:26]}  h5 {[%clk 0:12:16]} 19. Nc1 {[%clk 0:07:16]}  Nc6 {[%clk 0:11:47]} 20. N1b3 {[%clk 0:06:52]}  Bh6 {[%clk 0:10:01]} 21. Qf2 {[%clk 0:06:04]}  Bf8 {[%clk 0:09:57]} 22. Be2 {[%clk 0:06:04]}  Be7 {[%clk 0:09:57]} 23. Rh3 {[%clk 0:06:04]}  a5 {[%clk 0:09:53]} 24. gxh5 {[%clk 0:05:30]}  a4 {[%clk 0:09:14]} 25. Nc1 {[%clk 0:05:03]}  Nxe5 {[%clk 0:07:59]} 26. f4 {[%clk 0:04:59]}  Nc4 {[%clk 0:07:59]} 27. hxg6 {[%clk 0:04:59]}  fxg6 {[%clk 0:07:59]} 28. Bg4 {[%clk 0:05:01]}  Kb8 {[%clk 0:07:43]} 29. N1d3 {[%clk 0:03:15]}  Bc8 {[%clk 0:07:49]} 30. Re1 {[%clk 0:03:15]}  Rhe8 {[%clk 0:06:15]} 31. b3 {[%clk 0:03:23]}  axb3 {[%clk 0:02:51]} 32. axb3 {[%clk 0:02:59]}  Na3+ {[%clk 0:02:51]} 33. Kb2 {[%clk 0:02:59]}  b4 {[%clk 0:02:51]} 34. Qd2 {[%clk 0:03:04]}  Bf6 {[%clk 0:02:08]} 35. Ne5 {[%clk 0:03:04]}  Rd6 {[%clk 0:02:08]} 36. Ra1 {[%clk 0:01:34]}  Rh8 {[%clk 0:01:33]} 37. Qe1 {[%clk 0:01:34]}  Rf8 {[%clk 0:01:33]} 38. Kc1 {[%clk 0:01:34]}  Bxe5 {[%clk 0:01:09]} 39. Qxe5 {[%clk 0:01:20]}  Rc6 {[%clk 0:01:09]} 40. Kb2 {[%clk 0:01:20]}  Rxc5 {[%clk 0:01:09]} 41. dxc5 {[%clk 0:01:20]}  Qxc5 {[%clk 0:01:09]} 42. Rc1 {[%clk 0:00:31]}  Rd8 {[%clk 0:01:32]} 43. Rd3 {[%clk 0:00:31]}  Rd6 {[%clk 0:01:32]} 44. Qd4 {[%clk 0:00:31]}  Qa5 {[%clk 0:01:32]} 45. c3 {[%clk 0:00:31]}  Nc4+ {[%clk 0:01:32]} 46. Kc2 {[%clk 0:00:34]}  Qa2+ {[%clk 0:01:22]} 47. Kd1 {[%clk 0:00:34]}  Nb2+ {[%clk 0:01:22]} 48. Ke1 {[%clk 0:00:34]}  Nxd3+ {[%clk 0:01:22]} 49. Qxd3 {[%clk 0:00:34]}  Ba6 {[%clk 0:01:22]} 50. Qc2 {[%clk 0:00:45]}  Qa5 {[%clk 0:01:13]} 51. Qd2 {[%clk 0:00:45]}  bxc3 {[%clk 0:01:13]} 52. Qxc3 {[%clk 0:00:45]}  Qb6 {[%clk 0:01:13]} 53. Qc5 {[%clk 0:00:45]}  Qxc5 {[%clk 0:01:13]} 54. Rxc5 {[%clk 0:00:45]}  Kb7 {[%clk 0:01:13]} 55. Kd2 {[%clk 0:00:45]}  Kb6 {[%clk 0:01:13]} 56. b4 {[%clk 0:00:45]}  Bc8 {[%clk 0:01:13]} 57. Be2 {[%clk 0:00:39]}  Rd8 {[%clk 0:01:37]} 58. Ke3 {[%clk 0:00:39]}  Bd7 {[%clk 0:01:37]} 59. Rc1 {[%clk 0:00:19]}  Rh8 {[%clk 0:01:33]} 60. Rh1 {[%clk 0:00:19]}  c5 {[%clk 0:01:33]} 61. bxc5+ {[%clk 0:00:19]}  Kxc5 {[%clk 0:01:33]} 62. Bd3 {[%clk 0:00:19]}  Be8 {[%clk 0:01:33]} 63. Rc1+ {[%clk 0:00:19]}  Kd6 {[%clk 0:01:33]} 64. Rc8 {[%clk 0:00:19]}  Rg8 {[%clk 0:01:33]} 65. Kd4 {[%clk 0:00:19]}  Rf8 {[%clk 0:01:42]} 66. Bxg6 {[%clk 0:00:19]}  Rxf4+ {[%clk 0:01:42]} 67. Ke3 {[%clk 0:00:19]}  Bd7 {[%clk 0:01:12]} 68. Kxf4 {[%clk 0:00:24]}  Bxc8 {[%clk 0:01:12]} 69. h5 {[%clk 0:00:24]}  Ke7 {[%clk 0:01:12]} 70. Ke5 {[%clk 0:00:24]}  Kf8 {[%clk 0:01:12]} 71. h6 {[%clk 0:00:24]} 1/2-1/2


[Site "http://www.Chess.com"]

[Event "FIDE World Rapid Chess Championship 2021"]
[White "Maghsoodloo, Parham"]
[Black "Saric, Ivan"]
[WhiteFideId "12539929"]
[BlackFideId "14508150"]
[WhiteElo "2512"]
[BlackElo "2684"]
[Result "1-0"]
[Round "06"]
[TimeControl "900+10"]
[Date "2021.12.27"]
[WhiteClock "0:00:36"]
[BlackClock "0:00:11"]

1. e4 {[%clk 0:15:00]}  e5 {[%clk 0:15:00]} 2. Nf3 {[%clk 0:15:00]}  Nc6 {[%clk 0:15:00]} 3. Bc4 {[%clk 0:15:00]}  Nf6 {[%clk 0:15:00]} 4. Ng5 {[%clk 0:15:44]}  d5 {[%clk 0:15:33]} 5. exd5 {[%clk 0:15:44]}  Na5 {[%clk 0:15:33]} 6. Bb5+ {[%clk 0:15:44]}  c6 {[%clk 0:15:33]} 7. dxc6 {[%clk 0:15:44]}  bxc6 {[%clk 0:15:33]} 8. Bd3 {[%clk 0:15:44]}  Nd5 {[%clk 0:15:33]} 9. h4 {[%clk 0:15:44]}  Bc5 {[%clk 0:15:58]} 10. Nc3 {[%clk 0:16:25]}  Nf4 {[%clk 0:11:49]} 11. Bf1 {[%clk 0:14:23]}  h6 {[%clk 0:09:45]} 12. Nge4 {[%clk 0:14:14]}  Bb6 {[%clk 0:08:20]} 13. d4 {[%clk 0:13:19]}  Bxd4 {[%clk 0:08:16]} 14. Bxf4 {[%clk 0:13:19]}  exf4 {[%clk 0:07:50]} 15. Qd2 {[%clk 0:09:19]}  Be5 {[%clk 0:07:50]} 16. Qxd8+ {[%clk 0:09:19]}  Kxd8 {[%clk 0:07:50]} 17. O-O-O {[%clk 0:09:19]}  Kc7 {[%clk 0:07:50]} 18. Na4 {[%clk 0:09:19]}  Nb7 {[%clk 0:06:58]} 19. Ba6 {[%clk 0:09:48]}  Rb8 {[%clk 0:05:47]} 20. Rhe1 {[%clk 0:07:05]}  f6 {[%clk 0:05:29]} 21. c3 {[%clk 0:07:02]}  Rd8 {[%clk 0:05:29]} 22. f3 {[%clk 0:06:48]}  Bf5 {[%clk 0:05:20]} 23. Bd3 {[%clk 0:05:37]}  Bxe4 {[%clk 0:03:46]} 24. Bxe4 {[%clk 0:05:40]}  Rxd1+ {[%clk 0:03:46]} 25. Rxd1 {[%clk 0:05:40]}  Bd6 {[%clk 0:03:46]} 26. Rd4 {[%clk 0:05:40]}  Nc5 {[%clk 0:03:36]} 27. Nxc5 {[%clk 0:05:09]}  Bxc5 {[%clk 0:03:36]} 28. Rc4 {[%clk 0:05:09]}  Be3+ {[%clk 0:02:52]} 29. Kc2 {[%clk 0:05:11]}  c5 {[%clk 0:02:52]} 30. Ra4 {[%clk 0:05:11]}  Kb6 {[%clk 0:02:52]} 31. Bd3 {[%clk 0:05:11]}  Re8 {[%clk 0:02:52]} 32. Ra6+ {[%clk 0:05:20]}  Kb7 {[%clk 0:02:45]} 33. a4 {[%clk 0:05:20]}  Bf2 {[%clk 0:02:15]} 34. Ra5 {[%clk 0:04:00]}  Kb6 {[%clk 0:02:15]} 35. Rb5+ {[%clk 0:03:58]}  Kc7 {[%clk 0:00:00]} 36. h5 {[%clk 0:03:58]}  Re5 {[%clk 0:00:00]} 37. Be4 {[%clk 0:03:58]}  f5 {[%clk 0:00:00]} 38. Bd3 {[%clk 0:03:58]}  Bh4 {[%clk 0:00:00]} 39. a5 {[%clk 0:03:12]}  Bf6 {[%clk 0:00:30]} 40. a6 {[%clk 0:03:12]}  Kd6 {[%clk 0:00:09]} 41. Rb8 {[%clk 0:02:43]}  Kc6 {[%clk 0:00:09]} 42. Bb5+ {[%clk 0:02:11]}  Kd6 {[%clk 0:00:08]} 43. Rc8 {[%clk 0:02:11]}  Re7 {[%clk 0:00:08]} 44. Rc6+ {[%clk 0:02:11]}  Kd5 {[%clk 0:00:08]} 45. Kd2 {[%clk 0:02:11]}  Be5 {[%clk 0:00:08]} 46. b3 {[%clk 0:00:21]}  Rc7 {[%clk 0:00:00]} 47. c4+ {[%clk 0:00:21]}  Kd4 {[%clk 0:00:00]} 48. Re6 {[%clk 0:00:21]}  Bf6 {[%clk 0:00:00]} 49. Be8 {[%clk 0:00:21]}  Re7 {[%clk 0:00:00]} 50. Rd6+ {[%clk 0:00:21]}  Ke5 {[%clk 0:00:00]} 51. Rd5+ {[%clk 0:00:21]}  Ke6 {[%clk 0:00:00]} 52. Bg6 {[%clk 0:00:21]}  Bd4 {[%clk 0:00:00]} 53. Bxf5+ {[%clk 0:00:21]}  Kf6 {[%clk 0:00:34]} 54. Be4 {[%clk 0:00:21]}  Be3+ {[%clk 0:00:34]} 55. Kd3 {[%clk 0:00:21]}  Re6 {[%clk 0:00:34]} 56. Rf5+ {[%clk 0:00:21]}  Ke7 {[%clk 0:00:34]} 57. Bd5 {[%clk 0:00:24]}  Rf6 {[%clk 0:00:31]} 58. Re5+ {[%clk 0:00:24]}  Kd7 {[%clk 0:00:31]} 59. Bb7 {[%clk 0:00:24]}  Rd6+ {[%clk 0:00:31]} 60. Ke4 {[%clk 0:00:24]}  Rd2 {[%clk 0:00:31]} 61. Rf5 {[%clk 0:00:24]}  Rxg2 {[%clk 0:00:31]} 62. Rf7+ {[%clk 0:00:24]}  Kd6 {[%clk 0:00:31]} 63. Bd5 {[%clk 0:00:49]}  Re2 {[%clk 0:00:13]} 64. Rxa7 {[%clk 0:00:49]}  Bd4+ {[%clk 0:00:13]} 65. Kxf4 {[%clk 0:00:49]}  Ra2 {[%clk 0:00:13]} 66. Kf5 {[%clk 0:00:19]}  Ra3 {[%clk 0:00:14]} 67. Ra8 {[%clk 0:00:19]}  Kc7 {[%clk 0:00:14]} 68. Ke6 {[%clk 0:00:19]}  Ra1 {[%clk 0:00:14]} 69. Bb7 {[%clk 0:00:19]}  Re1+ {[%clk 0:00:14]} 70. Kf7 {[%clk 0:00:19]}  Re3 {[%clk 0:00:14]} 71. Bd5 {[%clk 0:00:20]}  Kb6 {[%clk 0:00:17]} 72. Be4 {[%clk 0:00:20]}  Re1 {[%clk 0:00:17]} 73. Ke6 {[%clk 0:00:20]}  Ra1 {[%clk 0:00:17]} 74. Kd7 {[%clk 0:00:20]}  Be5 {[%clk 0:00:17]} 75. Re8 {[%clk 0:00:20]}  Bf4 {[%clk 0:00:12]} 76. Re6+ {[%clk 0:00:31]}  Ka7 {[%clk 0:00:12]} 77. Kc8 {[%clk 0:00:31]}  Rh1 {[%clk 0:00:12]} 78. Bg6 {[%clk 0:00:31]}  Rh3 {[%clk 0:00:12]} 79. Be8 {[%clk 0:00:31]}  Rxf3 {[%clk 0:00:12]} 80. Bb5 {[%clk 0:00:21]}  Bg5 {[%clk 0:00:25]} 81. Re5 {[%clk 0:00:21]}  Kb6 {[%clk 0:00:25]} 82. Kd7 {[%clk 0:00:21]}  Rxb3 {[%clk 0:00:25]} 83. Re6+ {[%clk 0:00:21]}  Ka7 {[%clk 0:00:25]} 84. Kc6 {[%clk 0:00:21]}  Re3 {[%clk 0:00:25]} 85. Rd6 {[%clk 0:00:21]}  Re7 {[%clk 0:00:39]} 86. Kxc5 {[%clk 0:00:25]}  Bf4 {[%clk 0:00:39]} 87. Rd8 {[%clk 0:00:25]}  Re5+ {[%clk 0:00:39]} 88. Kb4 {[%clk 0:00:25]}  Re7 {[%clk 0:00:39]} 89. c5 {[%clk 0:00:36]}  Bc7 {[%clk 0:00:11]} 90. Rc8 {[%clk 0:00:36]}  g5 {[%clk 0:00:11]} 91. hxg6 {[%clk 0:00:36]}  Rg7 {[%clk 0:00:11]} 92. Bd3 {[%clk 0:00:36]}  h5 {[%clk 0:00:11]} 93. Rh8 {[%clk 0:00:36]} 1-0


[Site "http://www.Chess.com"]